{"text_format":"1","workbook":"xlsx","n_sheets":2,"sheets":["Palk Sisestus","palgalehed_mall"],"not_rendered":{"charts":0,"images":0,"macros":1,"external_links":0,"defined_names":7,"comments":0,"pivot_tables":0},"unopened":[],"bounds":{"document_bytes":16777216,"sheet_cells":100000,"rows_first":2000,"rows_last":500,"rows_between":2000,"halvings":0,"cell_chars":16384,"cell_head_chars":4096},"cells_cut":0,"cells_raw":0,"read":"whole","date_system":"1900"}

{"sheet":"Palk Sisestus","index":0,"n_rows":13,"n_cols":24,"rows_kept":13,"cut":false,"hidden":false,"merged":[]}
[null,"PALGAKALKULAATOR",null,null,null,null,null,null,null,null,"PERIOODI LÕPP:",41372,null,"ETTEVÕTTE NIMI:",null,"ADVENTURE WORKS"]
[]
[null,"ID","Töötaja nimi","Regulaarsed töötunnid","Puhkusetunnid","Haiguspuhkuse tunnid","Ületunnitöö","Ületunnitöö määr","Brutotasu","Maksud ja mahaarvamised","Muud mahaarvamised","Netotasu"," ","Tunnitasu","Maksud","Kinnipeetavad maksud","Maakonnamaks","Tulumaks","Sotsiaalmaks","Ravikindlustus","Kinnipeetud maksud kokku","Kindlustuse mahaarvamine","Muud regulaarsed mahaarvamised","Regulaarsed mahaarvamised kokku"]
[null,1001,"Tony Smith",50,5,1,null,null,{"$f":"SUM(Töötajad[[#This Row],[Regulaarsed töötunnid]:[Haiguspuhkuse tunnid]])*Töötajad[[#This Row],[Tunnitasu]]+Töötajad[[#This Row],[Ületunnitöö]]*Töötajad[[#This Row],[Ületunnitöö määr]]","v":560},{"$f":"Töötajad[[#This Row],[Brutotasu]]*Töötajad[[#This Row],[Kinnipeetud maksud kokku]] + Töötajad[[#This Row],[Regulaarsed mahaarvamised kokku]]","v":273.08000000000004},20,{"$f":"Töötajad[[#This Row],[Brutotasu]]-Töötajad[[#This Row],[Maksud ja mahaarvamised]]-Töötajad[[#This Row],[Muud mahaarvamised]]","v":266.91999999999996},null,10,1,4,2.3E-2,0.28000000000000003,6.3E-2,1.4500000000000001E-2,{"$f":"SUM(Töötajad[[#This Row],[Maakonnamaks]:[Ravikindlustus]])","v":0.38050000000000006},20,40,{"$f":"SUM(Töötajad[[#This Row],[Kindlustuse mahaarvamine]:[Muud regulaarsed mahaarvamised]])","v":60}]
[null,1002,"David Jones",40,null,null,null,null,{"$f":"SUM(Töötajad[[#This Row],[Regulaarsed töötunnid]:[Haiguspuhkuse tunnid]])*Töötajad[[#This Row],[Tunnitasu]]+Töötajad[[#This Row],[Ületunnitöö]]*Töötajad[[#This Row],[Ületunnitöö määr]]","v":320},{"$f":"Töötajad[[#This Row],[Brutotasu]]*Töötajad[[#This Row],[Kinnipeetud maksud kokku]] + Töötajad[[#This Row],[Regulaarsed mahaarvamised kokku]]","v":131.76000000000002},null,{"$f":"Töötajad[[#This Row],[Brutotasu]]-Töötajad[[#This Row],[Maksud ja mahaarvamised]]-Töötajad[[#This Row],[Muud mahaarvamised]]","v":188.23999999999998},null,8,1,1,2.3E-2,0.28000000000000003,6.3E-2,1.4500000000000001E-2,{"$f":"SUM(Töötajad[[#This Row],[Maakonnamaks]:[Ravikindlustus]])","v":0.38050000000000006},0,10,{"$f":"SUM(Töötajad[[#This Row],[Kindlustuse mahaarvamine]:[Muud regulaarsed mahaarvamised]])","v":10}]
[null,1003,"Denise Smith",35,3,null,null,null,{"$f":"SUM(Töötajad[[#This Row],[Regulaarsed töötunnid]:[Haiguspuhkuse tunnid]])*Töötajad[[#This Row],[Tunnitasu]]+Töötajad[[#This Row],[Ületunnitöö]]*Töötajad[[#This Row],[Ületunnitöö määr]]","v":532},{"$f":"Töötajad[[#This Row],[Brutotasu]]*Töötajad[[#This Row],[Kinnipeetud maksud kokku]] + Töötajad[[#This Row],[Regulaarsed mahaarvamised kokku]]","v":240.42600000000004},null,{"$f":"Töötajad[[#This Row],[Brutotasu]]-Töötajad[[#This Row],[Maksud ja mahaarvamised]]-Töötajad[[#This Row],[Muud mahaarvamised]]","v":291.57399999999996},null,14,1,3,2.3E-2,0.28000000000000003,6.3E-2,1.4500000000000001E-2,{"$f":"SUM(Töötajad[[#This Row],[Maakonnamaks]:[Ravikindlustus]])","v":0.38050000000000006},18,20,{"$f":"SUM(Töötajad[[#This Row],[Kindlustuse mahaarvamine]:[Muud regulaarsed mahaarvamised]])","v":38}]
[null,1008,"Sebastien Motte",50,5,1,null,null,{"$f":"SUM(Töötajad[[#This Row],[Regulaarsed töötunnid]:[Haiguspuhkuse tunnid]])*Töötajad[[#This Row],[Tunnitasu]]+Töötajad[[#This Row],[Ületunnitöö]]*Töötajad[[#This Row],[Ületunnitöö määr]]","v":1120},{"$f":"Töötajad[[#This Row],[Brutotasu]]*Töötajad[[#This Row],[Kinnipeetud maksud kokku]] + Töötajad[[#This Row],[Regulaarsed mahaarvamised kokku]]","v":441.16000000000008},null,{"$f":"Töötajad[[#This Row],[Brutotasu]]-Töötajad[[#This Row],[Maksud ja mahaarvamised]]-Töötajad[[#This Row],[Muud mahaarvamised]]","v":678.83999999999992},null,20,1,0,2.3E-2,0.28000000000000003,6.3E-2,1.4500000000000001E-2,{"$f":"SUM(Töötajad[[#This Row],[Maakonnamaks]:[Ravikindlustus]])","v":0.38050000000000006},15,null,{"$f":"SUM(Töötajad[[#This Row],[Kindlustuse mahaarvamine]:[Muud regulaarsed mahaarvamised]])","v":15}]
[null,1011,"Isabelle Scemla",40,null,null,2,15,{"$f":"SUM(Töötajad[[#This Row],[Regulaarsed töötunnid]:[Haiguspuhkuse tunnid]])*Töötajad[[#This Row],[Tunnitasu]]+Töötajad[[#This Row],[Ületunnitöö]]*Töötajad[[#This Row],[Ületunnitöö määr]]","v":430},{"$f":"Töötajad[[#This Row],[Brutotasu]]*Töötajad[[#This Row],[Kinnipeetud maksud kokku]] + Töötajad[[#This Row],[Regulaarsed mahaarvamised kokku]]","v":223.61500000000004},null,{"$f":"Töötajad[[#This Row],[Brutotasu]]-Töötajad[[#This Row],[Maksud ja mahaarvamised]]-Töötajad[[#This Row],[Muud mahaarvamised]]","v":206.38499999999996},null,10,1,0,2.3E-2,0.28000000000000003,6.3E-2,1.4500000000000001E-2,{"$f":"SUM(Töötajad[[#This Row],[Maakonnamaks]:[Ravikindlustus]])","v":0.38050000000000006},20,40,{"$f":"SUM(Töötajad[[#This Row],[Kindlustuse mahaarvamine]:[Muud regulaarsed mahaarvamised]])","v":60}]
[null,1012,"David Bristol",40,5,1,null,null,{"$f":"SUM(Töötajad[[#This Row],[Regulaarsed töötunnid]:[Haiguspuhkuse tunnid]])*Töötajad[[#This Row],[Tunnitasu]]+Töötajad[[#This Row],[Ületunnitöö]]*Töötajad[[#This Row],[Ületunnitöö määr]]","v":552},{"$f":"Töötajad[[#This Row],[Brutotasu]]*Töötajad[[#This Row],[Kinnipeetud maksud kokku]] + Töötajad[[#This Row],[Regulaarsed mahaarvamised kokku]]","v":270.03600000000006},null,{"$f":"Töötajad[[#This Row],[Brutotasu]]-Töötajad[[#This Row],[Maksud ja mahaarvamised]]-Töötajad[[#This Row],[Muud mahaarvamised]]","v":281.96399999999994},null,12,1,4,2.3E-2,0.28000000000000003,6.3E-2,1.4500000000000001E-2,{"$f":"SUM(Töötajad[[#This Row],[Maakonnamaks]:[Ravikindlustus]])","v":0.38050000000000006},20,40,{"$f":"SUM(Töötajad[[#This Row],[Kindlustuse mahaarvamine]:[Muud regulaarsed mahaarvamised]])","v":60}]
[null,1025,"Anne Weiler",36,null,2,1,18,{"$f":"SUM(Töötajad[[#This Row],[Regulaarsed töötunnid]:[Haiguspuhkuse tunnid]])*Töötajad[[#This Row],[Tunnitasu]]+Töötajad[[#This Row],[Ületunnitöö]]*Töötajad[[#This Row],[Ületunnitöö määr]]","v":474},{"$f":"Töötajad[[#This Row],[Brutotasu]]*Töötajad[[#This Row],[Kinnipeetud maksud kokku]] + Töötajad[[#This Row],[Regulaarsed mahaarvamised kokku]]","v":225.35700000000003},25,{"$f":"Töötajad[[#This Row],[Brutotasu]]-Töötajad[[#This Row],[Maksud ja mahaarvamised]]-Töötajad[[#This Row],[Muud mahaarvamised]]","v":223.64299999999997},null,12,1,2,2.3E-2,0.28000000000000003,6.3E-2,1.4500000000000001E-2,{"$f":"SUM(Töötajad[[#This Row],[Maakonnamaks]:[Ravikindlustus]])","v":0.38050000000000006},25,20,{"$f":"SUM(Töötajad[[#This Row],[Kindlustuse mahaarvamine]:[Muud regulaarsed mahaarvamised]])","v":45}]
[null,1032,"Luka Abrus",40,5,1,null,null,{"$f":"SUM(Töötajad[[#This Row],[Regulaarsed töötunnid]:[Haiguspuhkuse tunnid]])*Töötajad[[#This Row],[Tunnitasu]]+Töötajad[[#This Row],[Ületunnitöö]]*Töötajad[[#This Row],[Ületunnitöö määr]]","v":460},{"$f":"Töötajad[[#This Row],[Brutotasu]]*Töötajad[[#This Row],[Kinnipeetud maksud kokku]] + Töötajad[[#This Row],[Regulaarsed mahaarvamised kokku]]","v":175.03000000000003},50,{"$f":"Töötajad[[#This Row],[Brutotasu]]-Töötajad[[#This Row],[Maksud ja mahaarvamised]]-Töötajad[[#This Row],[Muud mahaarvamised]]","v":234.96999999999997},null,10,1,3,2.3E-2,0.28000000000000003,6.3E-2,1.4500000000000001E-2,{"$f":"SUM(Töötajad[[#This Row],[Maakonnamaks]:[Ravikindlustus]])","v":0.38050000000000006},null,null,{"$f":"SUM(Töötajad[[#This Row],[Kindlustuse mahaarvamine]:[Muud regulaarsed mahaarvamised]])","v":0}]
[null,1049,"David Ludwig",40,1,null,null,null,{"$f":"SUM(Töötajad[[#This Row],[Regulaarsed töötunnid]:[Haiguspuhkuse tunnid]])*Töötajad[[#This Row],[Tunnitasu]]+Töötajad[[#This Row],[Ületunnitöö]]*Töötajad[[#This Row],[Ületunnitöö määr]]","v":615},{"$f":"Töötajad[[#This Row],[Brutotasu]]*Töötajad[[#This Row],[Kinnipeetud maksud kokku]] + Töötajad[[#This Row],[Regulaarsed mahaarvamised kokku]]","v":259.00750000000005},23,{"$f":"Töötajad[[#This Row],[Brutotasu]]-Töötajad[[#This Row],[Maksud ja mahaarvamised]]-Töötajad[[#This Row],[Muud mahaarvamised]]","v":332.99249999999995},null,15,1,2,2.3E-2,0.28000000000000003,6.3E-2,1.4500000000000001E-2,{"$f":"SUM(Töötajad[[#This Row],[Maakonnamaks]:[Ravikindlustus]])","v":0.38050000000000006},25,null,{"$f":"SUM(Töötajad[[#This Row],[Kindlustuse mahaarvamine]:[Muud regulaarsed mahaarvamised]])","v":25}]
[null,"Kokku",{"$f":"SUBTOTAL(103,Töötajad[Töötaja nimi])","v":9},{"$f":"SUBTOTAL(109,Töötajad[Regulaarsed töötunnid])","v":371},{"$f":"SUBTOTAL(109,Töötajad[Puhkusetunnid])","v":24},{"$f":"SUBTOTAL(109,Töötajad[Haiguspuhkuse tunnid])","v":6},{"$f":"SUBTOTAL(109,Töötajad[Ületunnitöö])","v":3},null,{"$f":"SUBTOTAL(109,Töötajad[Brutotasu])","v":5063},{"$f":"SUBTOTAL(109,Töötajad[Maksud ja mahaarvamised])","v":2239.4715000000001},{"$f":"SUBTOTAL(109,Töötajad[Muud mahaarvamised])","v":118},{"$f":"SUBTOTAL(109,Töötajad[Netotasu])","v":2705.5284999999994},null,null,null,null,null,null,null,null,null,{"$f":"SUBTOTAL(109,Töötajad[Kindlustuse mahaarvamine])","v":143},{"$f":"SUBTOTAL(109,Töötajad[Muud regulaarsed mahaarvamised])","v":170},{"$f":"SUBTOTAL(109,Töötajad[Regulaarsed mahaarvamised kokku])","v":313}]

{"sheet":"palgalehed_mall","index":1,"n_rows":47,"n_cols":13,"rows_kept":47,"cut":false,"hidden":true,"merged":[[2,7,2,8],[14,7,14,8],[26,7,26,8],[38,7,38,8],[38,11,38,12],[26,11,26,12],[14,11,14,12],[2,11,2,12],[2,3,2,4],[14,3,14,4],[26,3,26,4],[38,3,38,4],[44,2,44,3],[8,2,8,3],[9,2,9,3],[45,2,45,3],[32,2,32,3],[33,2,33,3],[20,2,20,3],[21,2,21,3]]}
[]
[null,null,{"$f":"EttevõteNimi","v":"ADVENTURE WORKS"}]
[null,null,"PERIOOD",{"$f":"PerioodLõpp","v":41372},null,null,"NIMI",{"$f":"IFERROR(INDEX(Töötajad[Töötaja nimi],Palgaleht),\"\")","v":"Tony Smith"},null,null,"TÖÖTAJA ID",{"$f":"IFERROR(INDEX(Töötajad[ID],Palgaleht),\"\")","v":1001}]
[null,null,"Maksud",null,{"$f":"IFERROR(INDEX(Töötajad[Maksud],Palgaleht),\"\")","v":1},null,"Kinnipeetavad maksud",null,{"$f":"IFERROR(INDEX(Töötajad[Kinnipeetavad maksud],Palgaleht),\"\")","v":4},null,"Töötunnid",null,{"$f":"IFERROR(INDEX(Töötajad[Regulaarsed töötunnid],Palgaleht),\"\")","v":50}]
[null,null,"Tunnihind",null,{"$f":"IFERROR(INDEX(Töötajad[Tunnitasu],Palgaleht),\"\")","v":10},null,"Ületunnitöö määr",null,{"$f":"IFERROR(INDEX(Töötajad[Ületunnitöö määr],Palgaleht),\"\")","v":0},null,"Haiguspuhkuse tunnid",null,{"$f":"IFERROR(INDEX(Töötajad[Haiguspuhkuse tunnid],Palgaleht),\"\")","v":1}]
[null,null,"Sotsiaalmaks",null,{"$f":"IFERROR(INDEX(Töötajad[Sotsiaalmaks],Palgaleht)  *  INDEX(Töötajad[Brutotasu],Palgaleht),\"\")","v":35.28},null,"Tulumaks ",null,{"$f":"IFERROR(INDEX(Töötajad[Tulumaks],Palgaleht)  *  INDEX(Töötajad[Brutotasu],Palgaleht),\"\")","v":156.80000000000001},null,"Puhkusetunnid",null,{"$f":"IFERROR(INDEX(Töötajad[Puhkusetunnid],Palgaleht),\"\")","v":5}]
[null,null,"Ravikindlustus ",null,{"$f":"IFERROR(INDEX(Töötajad[Ravikindlustus],Palgaleht)  *  INDEX(Töötajad[Brutotasu],Palgaleht),\"\")","v":8.120000000000001},null,"Maakonnamaks ",null,{"$f":"IFERROR(INDEX(Töötajad[Maakonnamaks],Palgaleht)  *  INDEX(Töötajad[Brutotasu],Palgaleht),\"\")","v":12.879999999999999},null,"Ületunnitöö",null,{"$f":"IFERROR(INDEX(Töötajad[Ületunnitöö],Palgaleht),\"\")","v":0}]
[null,null,"Kindlustuse mahaarvamine",null,{"$f":"IFERROR(INDEX(Töötajad[Kindlustuse mahaarvamine],Palgaleht),\"\")","v":20},null,"Muud regulaarsed mahaarvamised",null,{"$f":"IFERROR(INDEX(Töötajad[Muud regulaarsed mahaarvamised],Palgaleht),\"\")","v":40},null,"Brutotasu",null,{"$f":"IFERROR(INDEX(Töötajad[Brutotasu],Palgaleht),\"\")","v":560}]
[null,null,"Maksud kokku ja",null,{"$f":"IFERROR(INDEX(Töötajad[Maksud ja mahaarvamised],Palgaleht),\"\")","v":273.08000000000004},null,"Muud mahaarvamised",null,{"$f":"IFERROR(INDEX(Töötajad[Muud mahaarvamised],Palgaleht),\"\")","v":20},null,"Maksud ja mahaarvamised kokku ",null,{"$f":"IFERROR(INDEX(Töötajad[Maksud ja mahaarvamised],Palgaleht)  +  INDEX(Töötajad[Muud mahaarvamised],Palgaleht),\"\")","v":293.08000000000004}]
[null,null,"Regulaarsed mahaarvamised "]
[null,null,null,null,null,null,null,null,null,null,"NETOTASU",null,{"$f":"IFERROR(INDEX(Töötajad[Netotasu],Palgaleht),\"\")","v":266.91999999999996}]
[]
[]
[null,null,{"$f":"EttevõteNimi","v":"ADVENTURE WORKS"}]
[null,null,"PERIOOD",{"$f":"PerioodLõpp","v":41372},null,null,"NIMI",{"$f":"IFERROR(INDEX(Töötajad[Töötaja nimi],Palgaleht),\"\")","v":"David Jones"},null,null,"TÖÖTAJA ID",{"$f":"IFERROR(INDEX(Töötajad[ID],Palgaleht),\"\")","v":1002}]
[null,null,"Maksud",null,{"$f":"IFERROR(INDEX(Töötajad[Maksud],Palgaleht),\"\")","v":1},null,"Kinnipeetavad maksud",null,{"$f":"IFERROR(INDEX(Töötajad[Kinnipeetavad maksud],Palgaleht),\"\")","v":1},null,"Töötunnid",null,{"$f":"IFERROR(INDEX(Töötajad[Regulaarsed töötunnid],Palgaleht),\"\")","v":40}]
[null,null,"Tunnihind",null,{"$f":"IFERROR(INDEX(Töötajad[Tunnitasu],Palgaleht),\"\")","v":8},null,"Ületunnitöö määr",null,{"$f":"IFERROR(INDEX(Töötajad[Ületunnitöö määr],Palgaleht),\"\")","v":0},null,"Haiguspuhkuse tunnid",null,{"$f":"IFERROR(INDEX(Töötajad[Haiguspuhkuse tunnid],Palgaleht),\"\")","v":0}]
[null,null,"Sotsiaalmaks",null,{"$f":"IFERROR(INDEX(Töötajad[Sotsiaalmaks],Palgaleht)  *  INDEX(Töötajad[Brutotasu],Palgaleht),\"\")","v":20.16},null,"Tulumaks ",null,{"$f":"IFERROR(INDEX(Töötajad[Tulumaks],Palgaleht)  *  INDEX(Töötajad[Brutotasu],Palgaleht),\"\")","v":89.600000000000009},null,"Puhkusetunnid",null,{"$f":"IFERROR(INDEX(Töötajad[Puhkusetunnid],Palgaleht),\"\")","v":0}]
[null,null,"Ravikindlustus ",null,{"$f":"IFERROR(INDEX(Töötajad[Ravikindlustus],Palgaleht)  *  INDEX(Töötajad[Brutotasu],Palgaleht),\"\")","v":4.6400000000000006},null,"Maakonnamaks ",null,{"$f":"IFERROR(INDEX(Töötajad[Maakonnamaks],Palgaleht)  *  INDEX(Töötajad[Brutotasu],Palgaleht),\"\")","v":7.3599999999999994},null,"Ületunnitöö",null,{"$f":"IFERROR(INDEX(Töötajad[Ületunnitöö],Palgaleht),\"\")","v":0}]
[null,null,"Kindlustuse mahaarvamine",null,{"$f":"IFERROR(INDEX(Töötajad[Kindlustuse mahaarvamine],Palgaleht),\"\")","v":0},null,"Muud regulaarsed mahaarvamised",null,{"$f":"IFERROR(INDEX(Töötajad[Muud regulaarsed mahaarvamised],Palgaleht),\"\")","v":10},null,"Brutotasu",null,{"$f":"IFERROR(INDEX(Töötajad[Brutotasu],Palgaleht),\"\")","v":320}]
[null,null,"Maksud kokku ja",null,{"$f":"IFERROR(INDEX(Töötajad[Maksud ja mahaarvamised],Palgaleht),\"\")","v":131.76000000000002},null,"Muud mahaarvamised",null,{"$f":"IFERROR(INDEX(Töötajad[Muud mahaarvamised],Palgaleht),\"\")","v":0},null,"Maksud ja mahaarvamised kokku ",null,{"$f":"IFERROR(INDEX(Töötajad[Maksud ja mahaarvamised],Palgaleht)  +  INDEX(Töötajad[Muud mahaarvamised],Palgaleht),\"\")","v":131.76000000000002}]
[null,null,"Regulaarsed mahaarvamised "]
[null,null,null,null,null,null,null,null,null,null,"NETOTASU",null,{"$f":"IFERROR(INDEX(Töötajad[Netotasu],Palgaleht),\"\")","v":188.23999999999998}]
[]
[]
[null,null,{"$f":"EttevõteNimi","v":"ADVENTURE WORKS"}]
[null,null,"PERIOOD",{"$f":"PerioodLõpp","v":41372},null,null,"NIMI",{"$f":"IFERROR(INDEX(Töötajad[Töötaja nimi],Palgaleht),\"\")","v":"Denise Smith"},null,null,"TÖÖTAJA ID",{"$f":"IFERROR(INDEX(Töötajad[ID],Palgaleht),\"\")","v":1003}]
[null,null,"Maksud",null,{"$f":"IFERROR(INDEX(Töötajad[Maksud],Palgaleht),\"\")","v":1},null,"Kinnipeetavad maksud",null,{"$f":"IFERROR(INDEX(Töötajad[Kinnipeetavad maksud],Palgaleht),\"\")","v":3},null,"Töötunnid",null,{"$f":"IFERROR(INDEX(Töötajad[Regulaarsed töötunnid],Palgaleht),\"\")","v":35}]
[null,null,"Tunnihind",null,{"$f":"IFERROR(INDEX(Töötajad[Tunnitasu],Palgaleht),\"\")","v":14},null,"Ületunnitöö määr",null,{"$f":"IFERROR(INDEX(Töötajad[Ületunnitöö määr],Palgaleht),\"\")","v":0},null,"Haiguspuhkuse tunnid",null,{"$f":"IFERROR(INDEX(Töötajad[Haiguspuhkuse tunnid],Palgaleht),\"\")","v":0}]
[null,null,"Sotsiaalmaks",null,{"$f":"IFERROR(INDEX(Töötajad[Sotsiaalmaks],Palgaleht)  *  INDEX(Töötajad[Brutotasu],Palgaleht),\"\")","v":33.515999999999998},null,"Tulumaks ",null,{"$f":"IFERROR(INDEX(Töötajad[Tulumaks],Palgaleht)  *  INDEX(Töötajad[Brutotasu],Palgaleht),\"\")","v":148.96},null,"Puhkusetunnid",null,{"$f":"IFERROR(INDEX(Töötajad[Puhkusetunnid],Palgaleht),\"\")","v":3}]
[null,null,"Ravikindlustus ",null,{"$f":"IFERROR(INDEX(Töötajad[Ravikindlustus],Palgaleht)  *  INDEX(Töötajad[Brutotasu],Palgaleht),\"\")","v":7.7140000000000004},null,"Maakonnamaks ",null,{"$f":"IFERROR(INDEX(Töötajad[Maakonnamaks],Palgaleht)  *  INDEX(Töötajad[Brutotasu],Palgaleht),\"\")","v":12.236000000000001},null,"Ületunnitöö",null,{"$f":"IFERROR(INDEX(Töötajad[Ületunnitöö],Palgaleht),\"\")","v":0}]
[null,null,"Kindlustuse mahaarvamine",null,{"$f":"IFERROR(INDEX(Töötajad[Kindlustuse mahaarvamine],Palgaleht),\"\")","v":18},null,"Muud regulaarsed mahaarvamised",null,{"$f":"IFERROR(INDEX(Töötajad[Muud regulaarsed mahaarvamised],Palgaleht),\"\")","v":20},null,"Brutotasu",null,{"$f":"IFERROR(INDEX(Töötajad[Brutotasu],Palgaleht),\"\")","v":532}]
[null,null,"Maksud kokku ja",null,{"$f":"IFERROR(INDEX(Töötajad[Maksud ja mahaarvamised],Palgaleht),\"\")","v":240.42600000000004},null,"Muud mahaarvamised",null,{"$f":"IFERROR(INDEX(Töötajad[Muud mahaarvamised],Palgaleht),\"\")","v":0},null,"Maksud ja mahaarvamised kokku ",null,{"$f":"IFERROR(INDEX(Töötajad[Maksud ja mahaarvamised],Palgaleht)  +  INDEX(Töötajad[Muud mahaarvamised],Palgaleht),\"\")","v":240.42600000000004}]
[null,null,"Regulaarsed mahaarvamised "]
[null,null,null,null,null,null,null,null,null,null,"NETOTASU",null,{"$f":"IFERROR(INDEX(Töötajad[Netotasu],Palgaleht),\"\")","v":291.57399999999996}]
[]
[]
[null,null,{"$f":"EttevõteNimi","v":"ADVENTURE WORKS"}]
[null,null,"PERIOOD",{"$f":"PerioodLõpp","v":41372},null,null,"NIMI",{"$f":"IFERROR(INDEX(Töötajad[Töötaja nimi],Palgaleht),\"\")","v":"Sebastien Motte"},null,null,"TÖÖTAJA ID",{"$f":"IFERROR(INDEX(Töötajad[ID],Palgaleht),\"\")","v":1008}]
[null,null,"Maksud",null,{"$f":"IFERROR(INDEX(Töötajad[Maksud],Palgaleht),\"\")","v":1},null,"Kinnipeetavad maksud",null,{"$f":"IFERROR(INDEX(Töötajad[Kinnipeetavad maksud],Palgaleht),\"\")","v":0},null,"Töötunnid",null,{"$f":"IFERROR(INDEX(Töötajad[Regulaarsed töötunnid],Palgaleht),\"\")","v":50}]
[null,null,"Tunnihind",null,{"$f":"IFERROR(INDEX(Töötajad[Tunnitasu],Palgaleht),\"\")","v":20},null,"Ületunnitöö määr",null,{"$f":"IFERROR(INDEX(Töötajad[Ületunnitöö määr],Palgaleht),\"\")","v":0},null,"Haiguspuhkuse tunnid",null,{"$f":"IFERROR(INDEX(Töötajad[Haiguspuhkuse tunnid],Palgaleht),\"\")","v":1}]
[null,null,"Sotsiaalmaks",null,{"$f":"IFERROR(INDEX(Töötajad[Sotsiaalmaks],Palgaleht)  *  INDEX(Töötajad[Brutotasu],Palgaleht),\"\")","v":70.56},null,"Tulumaks ",null,{"$f":"IFERROR(INDEX(Töötajad[Tulumaks],Palgaleht)  *  INDEX(Töötajad[Brutotasu],Palgaleht),\"\")","v":313.60000000000002},null,"Puhkusetunnid",null,{"$f":"IFERROR(INDEX(Töötajad[Puhkusetunnid],Palgaleht),\"\")","v":5}]
[null,null,"Ravikindlustus ",null,{"$f":"IFERROR(INDEX(Töötajad[Ravikindlustus],Palgaleht)  *  INDEX(Töötajad[Brutotasu],Palgaleht),\"\")","v":16.240000000000002},null,"Maakonnamaks ",null,{"$f":"IFERROR(INDEX(Töötajad[Maakonnamaks],Palgaleht)  *  INDEX(Töötajad[Brutotasu],Palgaleht),\"\")","v":25.759999999999998},null,"Ületunnitöö",null,{"$f":"IFERROR(INDEX(Töötajad[Ületunnitöö],Palgaleht),\"\")","v":0}]
[null,null,"Kindlustuse mahaarvamine",null,{"$f":"IFERROR(INDEX(Töötajad[Kindlustuse mahaarvamine],Palgaleht),\"\")","v":15},null,"Muud regulaarsed mahaarvamised",null,{"$f":"IFERROR(INDEX(Töötajad[Muud regulaarsed mahaarvamised],Palgaleht),\"\")","v":0},null,"Brutotasu",null,{"$f":"IFERROR(INDEX(Töötajad[Brutotasu],Palgaleht),\"\")","v":1120}]
[null,null,"Maksud kokku ja",null,{"$f":"IFERROR(INDEX(Töötajad[Maksud ja mahaarvamised],Palgaleht),\"\")","v":441.16000000000008},null,"Muud mahaarvamised",null,{"$f":"IFERROR(INDEX(Töötajad[Muud mahaarvamised],Palgaleht),\"\")","v":0},null,"Maksud ja mahaarvamised kokku ",null,{"$f":"IFERROR(INDEX(Töötajad[Maksud ja mahaarvamised],Palgaleht)  +  INDEX(Töötajad[Muud mahaarvamised],Palgaleht),\"\")","v":441.16000000000008}]
[null,null,"Regulaarsed mahaarvamised "]
[null,null,null,null,null,null,null,null,null,null,"NETOTASU",null,{"$f":"IFERROR(INDEX(Töötajad[Netotasu],Palgaleht),\"\")","v":678.83999999999992}]